[Event "Early-Titled-Tuesday-Blitz-March-05-2024"]
[Site "Chess.com"]
[Date "2024.03.05"]
[Round "3"]
[White "rubicapa"]
[Black "bulletteemo"]
[Result "0-1"]
[WhiteElo "2424"]
[BlackElo "2593"]
[TimeControl "180+1"]
[EndTime "8:31:51 PST"]
[Termination "bulletteemo won by resignation"]

1. e4 {[%clk 0:03:00.9]} 1... c5 {[%clk 0:03:00.4]} 2. c3 {[%clk 0:02:59.3]}
2... Nf6 {[%clk 0:03:00]} 3. e5 {[%clk 0:02:59.3]} 3... Nd5 {[%clk 0:03:00.5]}
4. Nf3 {[%clk 0:02:59.4]} 4... Nc6 {[%clk 0:02:57.8]} 5. g3 {[%clk 0:02:58.8]}
5... d6 {[%clk 0:02:57.5]} 6. exd6 {[%clk 0:02:58.6]} 6... Qxd6 {[%clk
0:02:56.5]} 7. Bg2 {[%clk 0:02:59.5]} 7... g6 {[%clk 0:02:55.9]} 8. O-O {[%clk
0:02:59.4]} 8... Bg7 {[%clk 0:02:56.4]} 9. Na3 {[%clk 0:02:57.4]} 9... O-O
{[%clk 0:02:54.7]} 10. d4 {[%clk 0:02:57.4]} 10... cxd4 {[%clk 0:02:47]} 11. Nb5
{[%clk 0:02:57.2]} 11... Qc5 {[%clk 0:02:46.6]} 12. Nbxd4 {[%clk 0:02:56]} 12...
Bg4 {[%clk 0:02:41.9]} 13. Nb3 {[%clk 0:02:50]} 13... Qd6 {[%clk 0:02:39.4]} 14.
h3 {[%clk 0:02:47.8]} 14... Bxf3 {[%clk 0:02:29]} 15. Bxf3 {[%clk 0:02:45.7]}
15... Rad8 {[%clk 0:02:28.1]} 16. Bg5 {[%clk 0:02:38.6]} 16... h6 {[%clk
0:02:26.2]} 17. Bxd5 {[%clk 0:02:21.6]} 17... Qxd5 {[%clk 0:01:58.1]} 18. Qxd5
{[%clk 0:02:19.8]} 18... Rxd5 {[%clk 0:01:59]} 19. Be3 {[%clk 0:02:20]} 19... b6
{[%clk 0:01:37.4]} 20. Rfd1 {[%clk 0:02:19.4]} 20... Rfd8 {[%clk 0:01:37.7]} 21.
Rxd5 {[%clk 0:02:19.8]} 21... Rxd5 {[%clk 0:01:38.6]} 22. Kf1 {[%clk 0:02:19.9]}
22... Ne5 {[%clk 0:01:37.8]} 23. Ke2 {[%clk 0:02:13.6]} 23... Nc4 {[%clk
0:01:36.6]} 24. Bc1 {[%clk 0:02:12.8]} 24... f5 {[%clk 0:00:52.7]} 25. Nd2
{[%clk 0:02:12.6]} 25... Nd6 {[%clk 0:00:53]} 26. a4 {[%clk 0:02:10.1]} 26... e5
{[%clk 0:00:47.4]} 27. a5 {[%clk 0:01:33.2]} 27... Rxa5 {[%clk 0:00:27]} 28.
Rxa5 {[%clk 0:01:31.6]} 28... bxa5 {[%clk 0:00:27.9]} 29. Nb3 {[%clk 0:01:30.2]}
29... Nb7 {[%clk 0:00:28.3]} 30. Kd3 {[%clk 0:01:29.6]} 30... a4 {[%clk
0:00:28.6]} 31. Nd2 {[%clk 0:01:26.3]} 31... Na5 {[%clk 0:00:25.9]} 32. f3
{[%clk 0:01:15.3]} 32... Kf7 {[%clk 0:00:22.6]} 33. c4 {[%clk 0:01:03.8]} 33...
Ke6 {[%clk 0:00:22.5]} 34. Kc3 {[%clk 0:01:01.2]} 34... Nc6 {[%clk 0:00:22]} 35.
Kd3 {[%clk 0:00:54.3]} 35... a5 {[%clk 0:00:20.5]} 36. g4 {[%clk 0:00:52.4]}
36... Nb4+ {[%clk 0:00:20.4]} 37. Ke2 {[%clk 0:00:51.8]} 37... Kd6 {[%clk
0:00:20.6]} 38. gxf5 {[%clk 0:00:49.7]} 38... gxf5 {[%clk 0:00:21.5]} 39. Nf1
{[%clk 0:00:49.9]} 39... f4 {[%clk 0:00:19.8]} 40. Nd2 {[%clk 0:00:47.5]} 40...
Kc5 {[%clk 0:00:20.3]} 41. Kd1 {[%clk 0:00:32.3]} 41... Nc6 {[%clk 0:00:16.3]}
42. Kc2 {[%clk 0:00:30.3]} 42... Kd4 {[%clk 0:00:14.1]} 43. Ne4 {[%clk 0:00:11]}
43... Kxc4 {[%clk 0:00:12.1]} 44. Nd6+ {[%clk 0:00:11.3]} 44... Kd5 {[%clk
0:00:11.1]} 45. Nf5 {[%clk 0:00:11.1]} 45... Bf8 {[%clk 0:00:10.9]} 46. Bd2
{[%clk 0:00:11]} 46... Nd4+ {[%clk 0:00:09.7]} 47. Nxd4 {[%clk 0:00:10.2]} 47...
Kxd4 {[%clk 0:00:10.6]} 48. Bxa5 {[%clk 0:00:09.6]} 48... Ke3 {[%clk 0:00:10.8]}
49. Bc7 {[%clk 0:00:07.2]} 49... Bg7 {[%clk 0:00:10.9]} 0-1

[Event "Early-Titled-Tuesday-Blitz-March-05-2024"]
[Site "Chess.com"]
[Date "2024.03.05"]
[Round "3"]
[White "Schattman"]
[Black "tetrix83"]
[Result "0-1"]
[WhiteElo "2435"]
[BlackElo "2610"]
[TimeControl "180+1"]
[EndTime "8:31:52 PST"]
[Termination "tetrix83 won on time"]

1. d4 {[%clk 0:03:00.9]} 1... Nf6 {[%clk 0:02:59.6]} 2. Nf3 {[%clk 0:02:56.7]}
2... g6 {[%clk 0:02:59.7]} 3. g3 {[%clk 0:02:57.2]} 3... Bg7 {[%clk 0:02:59.8]}
4. Bg2 {[%clk 0:02:57.8]} 4... O-O {[%clk 0:03:00.2]} 5. O-O {[%clk 0:02:57.6]}
5... d6 {[%clk 0:03:00.5]} 6. Re1 {[%clk 0:02:57.2]} 6... Nbd7 {[%clk
0:02:51.2]} 7. e4 {[%clk 0:02:56.8]} 7... e5 {[%clk 0:02:51]} 8. Nc3 {[%clk
0:02:57.4]} 8... Re8 {[%clk 0:02:48.7]} 9. Be3 {[%clk 0:02:54.7]} 9... c6 {[%clk
0:02:44.9]} 10. h3 {[%clk 0:02:53.1]} 10... b5 {[%clk 0:02:44.4]} 11. a3 {[%clk
0:02:34.7]} 11... Qc7 {[%clk 0:02:43.6]} 12. d5 {[%clk 0:02:33.1]} 12... Bb7
{[%clk 0:02:41.5]} 13. Bf1 {[%clk 0:02:25.3]} 13... a6 {[%clk 0:02:37.9]} 14.
dxc6 {[%clk 0:02:19.2]} 14... Bxc6 {[%clk 0:02:36.8]} 15. Nd5 {[%clk 0:02:18.7]}
15... Qb7 {[%clk 0:02:34.1]} 16. Nxf6+ {[%clk 0:02:10.5]} 16... Nxf6 {[%clk
0:02:31]} 17. Qxd6 {[%clk 0:02:06.8]} 17... Nxe4 {[%clk 0:02:28.1]} 18. Qb4
{[%clk 0:01:46.7]} 18... a5 {[%clk 0:02:01]} 19. Qb3 {[%clk 0:01:35.7]} 19... a4
{[%clk 0:02:00.8]} 20. Qd3 {[%clk 0:01:26.9]} 20... Rad8 {[%clk 0:01:58.6]} 21.
Qe2 {[%clk 0:01:25.1]} 21... Nxg3 {[%clk 0:01:58.2]} 22. fxg3 {[%clk 0:01:25.1]}
22... Bxf3 {[%clk 0:01:58.3]} 23. Qxb5 {[%clk 0:01:24]} 23... Qa8 {[%clk
0:01:56.5]} 24. b4 {[%clk 0:00:39.7]} 24... axb3 {[%clk 0:01:48]} 25. cxb3
{[%clk 0:00:33.5]} 25... e4 {[%clk 0:01:44.8]} 26. Ra2 {[%clk 0:00:28.3]} 26...
Rb8 {[%clk 0:01:28.3]} 27. Qc4 {[%clk 0:00:19.9]} 27... Rec8 {[%clk 0:01:24.4]}
28. Qa4 {[%clk 0:00:19.9]} 28... Qxa4 {[%clk 0:01:09.8]} 29. bxa4 {[%clk
0:00:19.4]} 29... Rb3 {[%clk 0:01:10]} 30. Bf2 {[%clk 0:00:14]} 30... Ra8 {[%clk
0:01:03.4]} 31. Re3 {[%clk 0:00:11]} 31... Rb1 {[%clk 0:00:55.7]} 32. Rc2 {[%clk
0:00:05.8]} 32... Bd4 {[%clk 0:00:47.4]} 33. Rxf3 {[%clk 0:00:04]} 33... exf3
{[%clk 0:00:35.7]} 34. Bxd4 {[%clk 0:00:03.4]} 34... f6 {[%clk 0:00:28]} 35. Bc5
{[%clk 0:00:02.7]} 35... Rxa4 {[%clk 0:00:21.7]} 36. Kf2 {[%clk 0:00:02.5]}
36... Kg7 {[%clk 0:00:10.5]} 37. Bb4 {[%clk 0:00:02.7]} 37... Ra8 {[%clk
0:00:08.7]} 38. Bc4 {[%clk 0:00:02.5]} 38... Rh1 {[%clk 0:00:03]} 39. Kxf3
{[%clk 0:00:02.5]} 39... Rxh3 {[%clk 0:00:03.1]} 40. Kg2 {[%clk 0:00:02.6]}
40... Rh5 {[%clk 0:00:03.4]} 41. Be2 {[%clk 0:00:02.1]} 41... Re5 {[%clk
0:00:02.5]} 42. Bf3 {[%clk 0:00:02.2]} 42... Rd8 {[%clk 0:00:02]} 43. g4 {[%clk
0:00:02.2]} 43... Re3 {[%clk 0:00:01.8]} 44. Kf2 {[%clk 0:00:02]} 44... Rde8
{[%clk 0:00:02.2]} 45. Rc7+ {[%clk 0:00:01.7]} 45... Kh6 {[%clk 0:00:02.4]} 0-1

[Event "Early-Titled-Tuesday-Blitz-March-05-2024"]
[Site "Chess.com"]
[Date "2024.03.05"]
[Round "3"]
[White "carloseduar100"]
[Black "FMStan15"]
[Result "1-0"]
[WhiteElo "2368"]
[BlackElo "2075"]
[TimeControl "180+1"]
[EndTime "8:31:52 PST"]
[Termination "carloseduar100 won by resignation"]

1. e4 {[%clk 0:02:21.4]} 1... e6 {[%clk 0:02:57.1]} 2. Nf3 {[%clk 0:02:17.3]}
2... d5 {[%clk 0:02:57.2]} 3. exd5 {[%clk 0:02:16.3]} 3... exd5 {[%clk
0:02:57.4]} 4. Bd3 {[%clk 0:02:15.5]} 4... Bd6 {[%clk 0:02:57.5]} 5. O-O {[%clk
0:02:14.6]} 5... Ne7 {[%clk 0:02:57.1]} 6. c4 {[%clk 0:02:05.3]} 6... O-O {[%clk
0:02:53]} 7. cxd5 {[%clk 0:02:05.2]} 7... Bf5 {[%clk 0:02:44.8]} 8. Bxf5 {[%clk
0:02:03.7]} 8... Nxf5 {[%clk 0:02:44.4]} 9. d4 {[%clk 0:02:04]} 9... Nd7 {[%clk
0:02:37.9]} 10. Nc3 {[%clk 0:02:04.3]} 10... Nb6 {[%clk 0:02:37.2]} 11. Re1
{[%clk 0:02:01.4]} 11... Re8 {[%clk 0:02:35.8]} 12. Bg5 {[%clk 0:01:59.5]} 12...
f6 {[%clk 0:02:35.3]} 13. Bd2 {[%clk 0:01:56.6]} 13... Bb4 {[%clk 0:02:30]} 14.
Qb3 {[%clk 0:01:56.3]} 14... Bxc3 {[%clk 0:02:29.3]} 15. bxc3 {[%clk 0:01:56.3]}
15... Qxd5 {[%clk 0:02:25.8]} 16. Qxd5+ {[%clk 0:01:55.8]} 16... Nxd5 {[%clk
0:02:25.2]} 17. g3 {[%clk 0:01:52.7]} 17... Kf7 {[%clk 0:02:22.1]} 18. a4 {[%clk
0:01:52.8]} 18... Nd6 {[%clk 0:02:19.4]} 19. Kf1 {[%clk 0:01:42.4]} 19... Nc4
{[%clk 0:02:19.2]} 20. Rxe8 {[%clk 0:01:42.7]} 20... Rxe8 {[%clk 0:02:18.3]} 21.
Be1 {[%clk 0:01:43]} 21... b6 {[%clk 0:02:17]} 22. Nd2 {[%clk 0:01:37.9]} 22...
Nxd2+ {[%clk 0:02:05.7]} 23. Bxd2 {[%clk 0:01:37.9]} 23... a5 {[%clk 0:02:04.9]}
24. c4 {[%clk 0:01:34.8]} 24... Ne7 {[%clk 0:02:03.9]} 25. Re1 {[%clk
0:01:32.3]} 25... Nc6 {[%clk 0:01:55.6]} 26. Rxe8 {[%clk 0:01:30.5]} 26... Kxe8
{[%clk 0:01:55.4]} 27. Bc3 {[%clk 0:01:31]} 27... Kd7 {[%clk 0:01:46.3]} 28. Ke2
{[%clk 0:01:30.8]} 28... Ne7 {[%clk 0:01:44.8]} 29. Kd3 {[%clk 0:01:31.1]} 29...
c6 {[%clk 0:01:44.5]} 30. Bd2 {[%clk 0:01:18.5]} 30... Ke6 {[%clk 0:01:38.1]}
31. Bf4 {[%clk 0:01:17]} 31... Kd7 {[%clk 0:01:25.8]} 32. h4 {[%clk 0:00:39.5]}
32... f5 {[%clk 0:01:23.4]} 33. Bg5 {[%clk 0:00:36.5]} 33... Nc8 {[%clk
0:01:22.8]} 34. Ke3 {[%clk 0:00:34.6]} 34... Nd6 {[%clk 0:01:16.3]} 35. Kd3
{[%clk 0:00:32.3]} 35... Ne4 {[%clk 0:01:12.8]} 36. Be3 {[%clk 0:00:31.1]} 36...
g6 {[%clk 0:01:10.2]} 37. d5 {[%clk 0:00:22.8]} 37... cxd5 {[%clk 0:01:03.4]}
38. Bxb6 {[%clk 0:00:19.9]} 38... dxc4+ {[%clk 0:01:02]} 39. Kxc4 {[%clk
0:00:20.8]} 39... Kc6 {[%clk 0:00:58.4]} 40. Bxa5 {[%clk 0:00:13.3]} 40... Nxf2
{[%clk 0:00:57.9]} 41. Be1 {[%clk 0:00:13.9]} 41... Ne4 {[%clk 0:00:54.2]} 42.
Kd4 {[%clk 0:00:13.5]} 42... Kd6 {[%clk 0:00:40.4]} 43. a5 {[%clk 0:00:13.4]}
43... Kc6 {[%clk 0:00:37.4]} 44. Ke5 {[%clk 0:00:13.4]} 44... Nc5 {[%clk
0:00:35.7]} 45. Kf6 {[%clk 0:00:08.7]} 45... Nd3 {[%clk 0:00:35.8]} 46. Bd2
{[%clk 0:00:08.4]} 46... Nf2 {[%clk 0:00:31.9]} 47. Kg7 {[%clk 0:00:07.9]} 47...
Ne4 {[%clk 0:00:32]} 48. Bf4 {[%clk 0:00:08.2]} 48... Kb5 {[%clk 0:00:12.8]} 49.
Kxh7 {[%clk 0:00:08.5]} 49... Kxa5 {[%clk 0:00:12.2]} 50. Kxg6 {[%clk 0:00:09]}
1-0

[Event "Early-Titled-Tuesday-Blitz-March-05-2024"]
[Site "Chess.com"]
[Date "2024.03.05"]
[Round "3"]
[White "db-banana"]
[Black "ZuraTqebuchava"]
[Result "1-0"]
[WhiteElo "2469"]
[BlackElo "2246"]
[TimeControl "180+1"]
[EndTime "8:31:55 PST"]
[Termination "db-banana won on time"]

1. e4 {[%clk 0:03:00.9]} 1... g6 {[%clk 0:03:00.2]} 2. Nc3 {[%clk 0:03:00.4]}
2... Bg7 {[%clk 0:03:00.6]} 3. d4 {[%clk 0:03:01]} 3... c6 {[%clk 0:03:01]} 4.
h3 {[%clk 0:03:00.8]} 4... d6 {[%clk 0:03:01]} 5. g4 {[%clk 0:03:01.1]} 5... h5
{[%clk 0:02:59.8]} 6. g5 {[%clk 0:02:59.5]} 6... Nd7 {[%clk 0:02:40.9]} 7. Bg2
{[%clk 0:02:59]} 7... e5 {[%clk 0:02:36.7]} 8. d5 {[%clk 0:02:54.6]} 8... cxd5
{[%clk 0:02:30.2]} 9. Nxd5 {[%clk 0:02:52.5]} 9... Nb6 {[%clk 0:02:30.1]} 10. c3
{[%clk 0:02:41.4]} 10... Be6 {[%clk 0:02:25.1]} 11. Be3 {[%clk 0:02:33.8]} 11...
Nxd5 {[%clk 0:02:20.2]} 12. exd5 {[%clk 0:02:34.4]} 12... Bf5 {[%clk 0:02:20.5]}
13. Ne2 {[%clk 0:02:31.7]} 13... h4 {[%clk 0:02:12.6]} 14. O-O {[%clk
0:02:17.7]} 14... Ne7 {[%clk 0:02:07.8]} 15. c4 {[%clk 0:02:11.1]} 15... Qd7
{[%clk 0:02:04.7]} 16. Kh2 {[%clk 0:02:10.9]} 16... O-O {[%clk 0:01:57.4]} 17.
Rc1 {[%clk 0:02:04.9]} 17... b6 {[%clk 0:01:56.5]} 18. b4 {[%clk 0:01:58.9]}
18... a5 {[%clk 0:01:55.3]} 19. c5 {[%clk 0:01:50.1]} 19... bxc5 {[%clk
0:01:40.1]} 20. bxc5 {[%clk 0:01:49.2]} 20... dxc5 {[%clk 0:00:58.1]} 21. Rxc5
{[%clk 0:01:35.7]} 21... Rad8 {[%clk 0:00:51.5]} 22. Qc1 {[%clk 0:01:19.2]}
22... e4 {[%clk 0:00:48.3]} 23. Rd1 {[%clk 0:00:37.5]} 23... Be5+ {[%clk
0:00:42.1]} 24. Bf4 {[%clk 0:00:33.1]} 24... Qd6 {[%clk 0:00:36.3]} 25. Bxe5
{[%clk 0:00:30.1]} 25... Qxe5+ {[%clk 0:00:36.3]} 26. Qf4 {[%clk 0:00:30.7]}
26... Qb2 {[%clk 0:00:35.9]} 27. Rd2 {[%clk 0:00:27.8]} 27... Qb6 {[%clk
0:00:33.1]} 28. Qe3 {[%clk 0:00:20.6]} 28... Qd6+ {[%clk 0:00:31.1]} 29. Kg1
{[%clk 0:00:18.6]} 29... Rb8 {[%clk 0:00:29.2]} 30. Rd1 {[%clk 0:00:15.2]} 30...
a4 {[%clk 0:00:27.9]} 31. Nf4 {[%clk 0:00:13.7]} 31... Rb2 {[%clk 0:00:22.2]}
32. a3 {[%clk 0:00:13.2]} 32... Rb3 {[%clk 0:00:21.8]} 33. Qd4 {[%clk
0:00:13.5]} 33... Qxf4 {[%clk 0:00:21.2]} 34. d6 {[%clk 0:00:10.8]} 34... Nc8
{[%clk 0:00:14.6]} 35. d7 {[%clk 0:00:11.1]} 35... Bxd7 {[%clk 0:00:14.1]} 36.
Qxd7 {[%clk 0:00:12]} 36... Rb2 {[%clk 0:00:12.4]} 37. Rf1 {[%clk 0:00:08.5]}
37... Nb6 {[%clk 0:00:11.6]} 38. Qd4 {[%clk 0:00:08.5]} 38... Qxg5 {[%clk
0:00:11.1]} 39. Rxg5 {[%clk 0:00:06.7]} 39... e3 {[%clk 0:00:10.1]} 40. Qxe3
{[%clk 0:00:06.4]} 40... Rb3 {[%clk 0:00:10]} 41. Qe4 {[%clk 0:00:05]} 41... Nd7
{[%clk 0:00:09.5]} 42. Qd5 {[%clk 0:00:03.5]} 42... Nf6 {[%clk 0:00:09.6]} 43.
Rxg6+ {[%clk 0:00:04]} 43... Kh7 {[%clk 0:00:09.7]} 44. Rxf6 {[%clk 0:00:04.5]}
44... Kg7 {[%clk 0:00:09]} 45. Qg5+ {[%clk 0:00:04.7]} 1-0

[Event "Early-Titled-Tuesday-Blitz-March-05-2024"]
[Site "Chess.com"]
[Date "2024.03.05"]
[Round "3"]
[White "ChessFanNM"]
[Black "whiteglovethief"]
[Result "0-1"]
[WhiteElo "2262"]
[BlackElo "2474"]
[TimeControl "180+1"]
[EndTime "8:31:57 PST"]
[Termination "whiteglovethief won on time"]

1. e4 {[%clk 0:02:10.3]} 1... e6 {[%clk 0:02:51.9]} 2. d4 {[%clk 0:02:08.9]}
2... d5 {[%clk 0:02:52.5]} 3. Nc3 {[%clk 0:02:08.1]} 3... Bb4 {[%clk 0:02:51.7]}
4. e5 {[%clk 0:01:49.5]} 4... c5 {[%clk 0:02:50.8]} 5. a3 {[%clk 0:01:49.2]}
5... Bxc3+ {[%clk 0:02:50.6]} 6. bxc3 {[%clk 0:01:49.3]} 6... Ne7 {[%clk
0:02:51.5]} 7. a4 {[%clk 0:01:43.3]} 7... Nbc6 {[%clk 0:02:49.1]} 8. Nf3 {[%clk
0:01:42.6]} 8... Qa5 {[%clk 0:02:48.6]} 9. Bd2 {[%clk 0:01:37.9]} 9... Bd7
{[%clk 0:02:48.6]} 10. Bd3 {[%clk 0:01:36.9]} 10... f6 {[%clk 0:02:46.6]} 11.
exf6 {[%clk 0:01:26.2]} 11... gxf6 {[%clk 0:02:47.5]} 12. O-O {[%clk 0:01:25]}
12... O-O-O {[%clk 0:02:47.1]} 13. Qb1 {[%clk 0:01:16.4]} 13... c4 {[%clk
0:02:40.7]} 14. Be2 {[%clk 0:01:13.3]} 14... Rhg8 {[%clk 0:02:40.2]} 15. g3
{[%clk 0:01:09.2]} 15... e5 {[%clk 0:02:37.7]} 16. Qc1 {[%clk 0:00:57]} 16... e4
{[%clk 0:02:19.9]} 17. Ne1 {[%clk 0:00:55.6]} 17... Nf5 {[%clk 0:02:18.7]} 18.
Ng2 {[%clk 0:00:50.5]} 18... Nce7 {[%clk 0:02:01.3]} 19. Kh1 {[%clk 0:00:46.8]}
19... Ng6 {[%clk 0:01:58]} 20. Bg4 {[%clk 0:00:37.5]} 20... Kb8 {[%clk
0:01:52.7]} 21. Bxf5 {[%clk 0:00:36.3]} 21... Bxf5 {[%clk 0:01:52]} 22. Be3
{[%clk 0:00:35.5]} 22... Qxc3 {[%clk 0:01:47.5]} 23. Ra3 {[%clk 0:00:34.4]}
23... Qa5 {[%clk 0:01:47.1]} 24. Nf4 {[%clk 0:00:34.4]} 24... Ka8 {[%clk
0:01:42.7]} 25. Qb2 {[%clk 0:00:31.9]} 25... Bg4 {[%clk 0:01:37.7]} 26. Rb1
{[%clk 0:00:31]} 26... Rd7 {[%clk 0:01:33.4]} 27. Qb5 {[%clk 0:00:28.9]} 27...
Qxb5 {[%clk 0:01:30.4]} 28. Rxb5 {[%clk 0:00:29]} 28... Bf3+ {[%clk 0:01:27.6]}
29. Kg1 {[%clk 0:00:28.7]} 29... Nxf4 {[%clk 0:01:24.9]} 30. Bxf4 {[%clk
0:00:27.9]} 30... Rc8 {[%clk 0:01:13.7]} 31. a5 {[%clk 0:00:25.8]} 31... a6
{[%clk 0:01:14]} 32. Rb6 {[%clk 0:00:25.6]} 32... Rc6 {[%clk 0:01:14.3]} 33.
Rxc6 {[%clk 0:00:24.5]} 33... bxc6 {[%clk 0:01:14.9]} 34. Ra2 {[%clk 0:00:22.3]}
34... Rb7 {[%clk 0:01:15.1]} 35. Ra1 {[%clk 0:00:21.1]} 35... c3 {[%clk
0:01:10.4]} 36. Bc1 {[%clk 0:00:20.7]} 36... Rb4 {[%clk 0:01:03.7]} 37. Bf4
{[%clk 0:00:19.3]} 37... Rxd4 {[%clk 0:00:59.6]} 38. Rb1 {[%clk 0:00:19.3]}
38... Rd2 {[%clk 0:00:58.9]} 39. Kf1 {[%clk 0:00:13.4]} 39... Rxc2 {[%clk
0:00:47.8]} 40. Rb8+ {[%clk 0:00:12.9]} 40... Ka7 {[%clk 0:00:48.4]} 41. Rb1
{[%clk 0:00:12.8]} 41... Rb2 {[%clk 0:00:47.9]} 42. Be3+ {[%clk 0:00:11.6]}
42... Kb7 {[%clk 0:00:46.6]} 43. Rc1 {[%clk 0:00:11.6]} 43... c2 {[%clk
0:00:45.2]} 44. Ke1 {[%clk 0:00:11.5]} 44... Bd1 {[%clk 0:00:38.6]} 45. Bd4
{[%clk 0:00:10.1]} 45... Rb1 {[%clk 0:00:37.8]} 46. Kd2 {[%clk 0:00:10.4]} 46...
Rxc1 {[%clk 0:00:37.6]} 47. Kxc1 {[%clk 0:00:10.4]} 47... f5 {[%clk 0:00:33.6]}
48. h3 {[%clk 0:00:08]} 48... h5 {[%clk 0:00:32.2]} 49. Bc5 {[%clk 0:00:06.5]}
49... Kc7 {[%clk 0:00:32.2]} 50. Kd2 {[%clk 0:00:05.9]} 50... Kd7 {[%clk
0:00:32.5]} 51. g4 {[%clk 0:00:02.3]} 51... fxg4 {[%clk 0:00:31.8]} 52. hxg4
{[%clk 0:00:02.3]} 52... h4 {[%clk 0:00:28.2]} 53. Be3 {[%clk 0:00:02]} 53... h3
{[%clk 0:00:28]} 54. Bf4 {[%clk 0:00:02.2]} 54... Bxg4 {[%clk 0:00:26.9]} 55.
Kxc2 {[%clk 0:00:01.5]} 55... d4 {[%clk 0:00:26.7]} 0-1

[Event "Early-Titled-Tuesday-Blitz-March-05-2024"]
[Site "Chess.com"]
[Date "2024.03.05"]
[Round "3"]
[White "Binary010"]
[Black "WindWhistler11"]
[Result "0-1"]
[WhiteElo "2814"]
[BlackElo "2529"]
[TimeControl "180+1"]
[EndTime "8:31:58 PST"]
[Termination "WindWhistler11 won by resignation"]

1. d4 {[%clk 0:03:00.9]} 1... Nf6 {[%clk 0:02:50.8]} 2. c4 {[%clk 0:03:00.8]}
2... e6 {[%clk 0:02:50.8]} 3. Nf3 {[%clk 0:03:00.8]} 3... c5 {[%clk 0:02:51.5]}
4. g3 {[%clk 0:03:00.4]} 4... cxd4 {[%clk 0:02:50.1]} 5. Nxd4 {[%clk 0:03:01.3]}
5... a6 {[%clk 0:02:50.2]} 6. Bg2 {[%clk 0:03:00.1]} 6... Qc7 {[%clk 0:02:50]}
7. Nc3 {[%clk 0:02:50.6]} 7... Nc6 {[%clk 0:02:46.8]} 8. O-O {[%clk 0:02:47.8]}
8... h5 {[%clk 0:02:44.3]} 9. Nxc6 {[%clk 0:02:32.8]} 9... dxc6 {[%clk
0:02:40.6]} 10. Bg5 {[%clk 0:02:29.5]} 10... Nh7 {[%clk 0:02:34.2]} 11. Be3
{[%clk 0:02:25.4]} 11... h4 {[%clk 0:02:29]} 12. Ne4 {[%clk 0:02:24.9]} 12...
hxg3 {[%clk 0:02:11.7]} 13. hxg3 {[%clk 0:02:19.3]} 13... Nf6 {[%clk 0:02:11.6]}
14. Nxf6+ {[%clk 0:02:09]} 14... gxf6 {[%clk 0:02:11.1]} 15. Qd4 {[%clk
0:02:09.6]} 15... e5 {[%clk 0:02:00.1]} 16. Qc3 {[%clk 0:01:55]} 16... Be6
{[%clk 0:01:52.5]} 17. Rad1 {[%clk 0:01:53.9]} 17... Be7 {[%clk 0:01:43.4]} 18.
f4 {[%clk 0:01:47.1]} 18... Rg8 {[%clk 0:01:27.9]} 19. Kf2 {[%clk 0:01:42.5]}
19... Rd8 {[%clk 0:01:15.2]} 20. Rxd8+ {[%clk 0:01:40.5]} 20... Kxd8 {[%clk
0:01:14.9]} 21. Rh1 {[%clk 0:01:11.8]} 21... Kc8 {[%clk 0:01:06.3]} 22. Rh5
{[%clk 0:01:01]} 22... Bd6 {[%clk 0:01:04.3]} 23. f5 {[%clk 0:00:45.6]} 23...
Bd7 {[%clk 0:01:03.8]} 24. c5 {[%clk 0:00:43.7]} 24... Be7 {[%clk 0:00:58.3]}
25. Be4 {[%clk 0:00:43.7]} 25... Qd8 {[%clk 0:00:52.6]} 26. Rh1 {[%clk
0:00:37.1]} 26... Rh8 {[%clk 0:00:49]} 27. Qc1 {[%clk 0:00:35]} 27... Qf8 {[%clk
0:00:45.5]} 28. b4 {[%clk 0:00:29.9]} 28... Bd8 {[%clk 0:00:31.5]} 29. g4 {[%clk
0:00:18.4]} 29... Qg7 {[%clk 0:00:28.8]} 30. Rxh8 {[%clk 0:00:16.9]} 30... Qxh8
{[%clk 0:00:28.7]} 31. Qh1 {[%clk 0:00:17.6]} 31... Qxh1 {[%clk 0:00:16.2]} 32.
Bxh1 {[%clk 0:00:18.5]} 32... a5 {[%clk 0:00:14.9]} 33. a3 {[%clk 0:00:16.9]}
33... Kb8 {[%clk 0:00:15.4]} 34. Be4 {[%clk 0:00:14.7]} 34... Ka7 {[%clk
0:00:16]} 35. Bd3 {[%clk 0:00:14.7]} 35... Bc7 {[%clk 0:00:15.8]} 36. Bc4 {[%clk
0:00:14.4]} 36... Be8 {[%clk 0:00:15]} 37. Bh6 {[%clk 0:00:13.5]} 37... e4
{[%clk 0:00:14.7]} 38. Ke3 {[%clk 0:00:09.6]} 38... Be5 {[%clk 0:00:14.3]} 39.
bxa5 {[%clk 0:00:06.3]} 39... Bb2 {[%clk 0:00:15]} 40. a4 {[%clk 0:00:05.7]}
40... Bc1+ {[%clk 0:00:15.3]} 41. Kxe4 {[%clk 0:00:05.3]} 41... Bxh6 {[%clk
0:00:16.2]} 42. Kd4 {[%clk 0:00:05.5]} 42... Bf4 {[%clk 0:00:15.5]} 43. e4
{[%clk 0:00:05.6]} 43... Be5+ {[%clk 0:00:16]} 44. Kd3 {[%clk 0:00:06.2]} 44...
Bg3 {[%clk 0:00:14.2]} 45. Kd4 {[%clk 0:00:06.3]} 45... Bf2+ {[%clk 0:00:14.1]}
46. Kc3 {[%clk 0:00:06.7]} 46... Be1+ {[%clk 0:00:14.8]} 47. Kb3 {[%clk
0:00:05.6]} 47... Bxa5 {[%clk 0:00:15.7]} 48. Bd3 {[%clk 0:00:05.7]} 48... Kb8
{[%clk 0:00:15.5]} 49. Kc4 {[%clk 0:00:06.3]} 49... Kc7 {[%clk 0:00:16]} 50. Bc2
{[%clk 0:00:07]} 50... Be1 {[%clk 0:00:16.2]} 51. Bb3 {[%clk 0:00:07.2]} 51...
Kd8 {[%clk 0:00:15.7]} 52. Kd3 {[%clk 0:00:07.1]} 52... Ke7 {[%clk 0:00:15.9]}
53. Kc4 {[%clk 0:00:06.9]} 53... Kf8 {[%clk 0:00:15.8]} 54. Kd3 {[%clk
0:00:05.9]} 54... Kg7 {[%clk 0:00:16]} 55. Ke2 {[%clk 0:00:06.5]} 55... Bb4
{[%clk 0:00:16.2]} 56. Kf3 {[%clk 0:00:06.5]} 56... Bxc5 {[%clk 0:00:16.8]} 0-1